bitfinex-derivatives/quotes_SOLF0:USTF0_20260123
["timestamp","ask_amount","ask_price","bid_price","bid_amount"]
[1769180114240,10.99845114,126.02,125.94,7.1547]
[1769180114439,10.99845114,126.02,125.92,6.54641435]
[1769180114832,10.99845114,126.0,125.92,6.54641435]
[1769180115940,10.99845114,126.0,125.92,13.70261435]
[1769180116239,10.99845114,126.0,125.92,6.54641435]
[1769180116937,7.1512,126.01,125.92,6.54641435]
[1769180117146,10.99845114,126.02,125.94,7.1551]
[1769180118237,10.99845114,126.02,125.93,6.71566898]
[1769180118431,10.99845114,126.02,125.9,12.0088835]
[1769180118637,10.99845114,126.01,125.9,12.0088835]
[1769180119237,10.99845114,125.99,125.91,6.75677463]
[1769180119742,7.1521,126.0,125.92,6.79740813]
[1769180120242,18.15055114,126.0,125.92,6.79740813]
[1769180120542,10.99845114,126.0,125.93,6.79740813]
[1769180123038,10.99845114,126.0,125.9,19.36674425]
[1769180123746,10.99845114,126.0,125.91,6.95532829]
[1769180124144,10.99845114,126.0,125.92,6.95532829]
[1769180126854,10.99845114,126.0,125.91,7.1567]
[1769180128055,10.99845114,125.99,125.9,7.10611703]
[1769180128549,10.99845114,125.97,125.88,14.301138]
[1769180129542,10.99845114,125.96,125.88,14.301138]
[1769180129948,10.99845114,125.96,125.89,7.158]
[1769180130455,10.99845114,125.96,125.89,14.33693834]
[1769180130660,10.99845114,125.96,125.9,7.1573]
[1769180131353,10.99845114,125.99,125.91,14.37152288]
[1769180131856,10.99845114,125.99,125.92,7.2500964]
[1769180132653,10.99845114,125.99,125.93,7.1554]
[1769180132849,10.99845114,125.99,125.89,118.66117866]
[1769180133054,10.99845114,125.99,125.9,7.31777866]
[1769180133656,10.99845114,125.99,125.93,7.1556]
[1769180133950,12.10670087,126.03,125.92,7.35194471]
[1769180134145,12.10670087,126.01,125.95,7.1544]
[1769180137358,12.10670087,126.0,125.95,7.1544]
[1769180138057,19.25710087,126.03,125.95,7.48472942]
[1769180138459,12.10670087,126.03,125.95,7.48472942]
[1769180138663,12.10670087,126.03,125.97,7.1533]
[1769180139359,12.10670087,126.03,125.98,7.1527]
[1769180140463,12.10670087,126.03,125.95,118.77652942]
[1769180141266,12.10670087,126.02,125.95,7.48472942]
[1769180141956,12.10670087,126.02,125.96,7.154]
[1769180142152,12.10670087,126.01,125.96,7.154]
[1769180144266,12.10670087,126.01,125.94,7.1547]
[1769180144267,19.25800087,126.01,125.94,7.1547]
[1769180144468,12.10670087,126.0,125.92,118.92961779]
[1769180144668,12.10670087,126.0,125.93,119.01223732]
[1769180144859,12.10670087,126.0,125.96,7.154]
[1769180146962,12.10670087,126.0,125.95,7.1546]
[1769180147571,12.10670087,126.0,125.94,7.1551]
[1769180148462,12.10670087,125.99,125.93,7.1557]
[1769180149065,12.10670087,125.98,125.92,7.1562]
[1769180149260,12.10670087,126.02,125.92,7.81977629]
[1769180149670,12.10670087,125.99,125.91,111.327]
[1769180149967,12.10670087,125.99,125.91,119.1751764]
[1769180150968,12.10670087,125.99,125.93,7.1554]
[1769180151358,12.10670087,125.99,125.92,7.87625031]
[1769180152358,12.10670087,125.99,125.9,119.23590177]
[1769180152557,12.10670087,125.99,125.91,7.90400177]
[1769180153874,12.10670087,125.99,125.93,7.1557]
[1769180154172,12.10670087,125.99,125.91,7.90400177]
[1769180154173,12.10670087,125.99,125.91,119.22910177]
[1769180154673,19.25730087,126.02,125.93,7.98535823]
[1769180154870,12.10670087,126.02,125.95,7.98535823]
[1769180155178,12.10670087,126.02,125.98,7.1527]
[1769180155374,116.48228255,126.07,125.98,7.1527]
[1769180155577,12.10670087,126.06,125.98,7.1527]
[1769180155870,12.10670087,126.04,125.96,119.29655647]
[1769180156979,12.10670087,126.04,125.98,7.1529]
[1769180157174,12.10670087,126.03,125.96,8.01185647]
[1769180157666,12.10670087,126.03,125.97,7.1532]
[1769180160375,12.10670087,126.05,125.97,8.11484063]
[1769180160567,12.10670087,126.05,125.98,8.11484063]
[1769180160968,12.10670087,126.05,126.0,7.1517]
[1769180161273,12.10670087,126.05,125.98,8.11484063]
[1769180161672,12.10670087,126.05,126.0,7.1517]
[1769180162470,12.10670087,126.05,126.01,7.1511]
[1769180162676,301.70310144,126.09,125.99,8.21203404]
[1769180162677,308.85020144,126.09,125.99,8.21203404]
[1769180162880,12.90951382,126.08,126.0,8.21203404]
[1769180163271,12.90951382,126.07,126.0,8.21203404]
[1769180164171,12.90951382,126.07,126.01,7.1512]
[1769180164374,12.90951382,126.07,125.99,119.49301455]
[1769180165370,12.90951382,126.07,126.0,7.1513]
[1769180165773,12.90951382,126.07,125.99,8.23591455]
[1769180166376,12.90951382,126.07,126.01,7.1511]
[1769180166780,12.90951382,126.07,126.0,8.32342885]
[1769180167770,12.63993495,126.09,126.01,119.58036448]
[1769180167978,12.63993495,126.09,126.02,8.34596448]
[1769180168174,7.1462,126.1,126.04,7.149]
[1769180168473,12.63993495,126.09,126.04,7.149]
[1769180168679,12.63993495,126.09,126.01,119.58036448]
[1769180168680,12.63993495,126.09,126.01,8.34596448]
[1769180168878,12.63993495,126.09,126.03,7.15]
[1769180168879,14.79098298,126.08,126.03,7.15]
[1769180170088,12.63993495,126.08,126.04,7.1495]
[1769180173373,12.63993495,126.08,126.05,7.1488]
[1769180175284,12.63993495,126.08,126.04,7.1495]
[1769180178389,14.79098298,126.08,126.03,7.15]
[1769180179389,2.15104803,126.06,126.01,7.1507]
[1769180179685,12.63993495,126.05,125.98,10.72845821]
[1769180180075,12.63993495,126.11,126.03,8.59702859]
[1769180180284,12.63993495,126.11,126.03,10.74807662]
[1769180180482,14.79098298,126.1,126.03,10.74807662]
[1769180180884,14.79098298,126.1,126.04,7.1492]
[1769180181080,308.19950335,126.17,126.07,14.60381411]
[1769180181285,111.089,126.19,126.07,14.60381411]
[1769180181286,2.15104803,126.18,126.09,14.60381411]
[1769180181788,2.15104803,126.14,126.06,14.60381411]
[1769180182189,2.15104803,126.12,126.04,2.15104803]
[1769180182591,2.15104803,126.1,126.03,12.45276608]
[1769180182987,12.63993495,126.1,126.03,7.1496]
[1769180184701,12.63993495,126.1,126.04,7.1493]
[1769180184887,12.63993495,126.1,126.03,123.67496608]
[1769180185691,12.63993495,126.1,126.05,7.1487]
[1769180186087,12.63993495,126.1,126.03,12.45276608]
[1769180186301,12.63993495,126.1,126.01,111.234]
[1769180186502,12.63993495,126.1,126.01,123.68676608]
[1769180187991,12.63993495,126.1,126.03,7.1497]
[1769180188994,12.63993495,126.09,126.01,19.60346608]
[1769180189197,12.63993495,126.09,126.01,12.45276608]
[1769180190004,12.63993495,126.08,126.02,7.1505]
[1769180190397,12.63993495,126.08,125.99,12.45276608]
[1769180191203,12.63993495,126.06,126.0,7.1516]
[1769180191593,12.63993495,126.05,125.97,12.45276608]
[1769180192504,12.88359755,126.04,125.97,7.1531]
[1769180192704,12.88359755,126.04,125.94,13.01477407]
[1769180193503,12.88359755,126.01,125.95,7.1541]
[1769180194402,12.88359755,126.01,125.91,111.3228]
[1769180194403,12.88359755,126.0,125.91,13.01477407]
[1769180195198,12.88359755,125.99,125.92,7.1562]
[1769180196905,12.88359755,125.99,125.91,13.01477407]
[1769180197804,12.88359755,125.98,125.88,13.01477407]
[1769180198707,20.03829755,125.95,125.88,13.01477407]
[1769180199210,12.88359755,125.94,125.85,13.01477407]
[1769180199715,20.03879755,125.94,125.86,13.01477407]
[1769180200828,111.2796,125.97,125.83,13.01477407]
[1769180200829,12.88359755,125.93,125.83,13.01477407]
[1769180201908,7.1564,125.92,125.84,7.1607]
[1769180202218,7.1564,125.92,125.84,20.17547407]
[1769180203121,20.03999755,125.92,125.84,20.17547407]
[1769180204719,12.88359755,125.92,125.85,13.01477407]
[1769180205223,12.88359755,125.92,125.86,13.01477407]
[1769180206622,12.88359755,125.92,125.86,20.17437407]
[1769180207016,12.88359755,125.92,125.86,7.1596]
[1769180208613,12.88359755,125.92,125.85,13.01477407]
[1769180209619,12.88359755,125.92,125.85,20.17497407]
[1769180211330,12.88359755,125.92,125.86,7.1597]
[1769180213221,12.88359755,125.92,125.87,7.1591]
[1769180213618,20.03989755,125.92,125.85,13.01477407]
[1769180213824,20.03989755,125.92,125.85,20.17447407]
[1769180214627,12.88359755,125.91,125.85,13.01477407]
[1769180214832,12.88359755,125.91,125.82,13.01477407]
[1769180215128,7.1574,125.9,125.84,20.17557407]
[1769180215437,12.88359755,125.91,125.84,13.01477407]
[1769180215932,12.88359755,125.9,125.84,13.01477407]
[1769180216627,18.1632277,125.93,125.84,13.01477407]
[1769180216826,12.88359755,125.93,125.84,13.01477407]
[1769180217731,12.88359755,125.9,125.81,13.01477407]
[1769180218232,20.04109755,125.9,125.83,7.1614]
[1769180218430,12.88359755,125.9,125.83,13.01477407]
[1769180218931,20.04229755,125.88,125.81,13.01477407]
[1769180219322,7.1592,125.87,125.81,13.01477407]
[1769180219928,12.88359755,125.88,125.81,13.01477407]
[1769180220535,20.04229755,125.88,125.81,20.17727407]
[1769180221033,7.1569,125.91,125.85,13.01477407]
[1769180221432,12.88359755,125.92,125.85,13.01477407]
[1769180221643,12.88359755,125.92,125.83,13.01477407]
[1769180222022,13.52180104,125.91,125.83,13.01477407]
[1769180222928,7.158,125.89,125.83,13.01477407]
[1769180223228,13.52180104,125.91,125.83,13.01477407]
[1769180223823,7.1575,125.9,125.83,13.01477407]
[1769180224027,20.67930104,125.9,125.83,13.01477407]
[1769180224326,7.1581,125.89,125.83,20.17617407]
[1769180224531,7.1581,125.89,125.83,13.01477407]
[1769180224730,20.67990104,125.89,125.83,13.01477407]
[1769180225032,7.1586,125.88,125.83,13.01477407]
[1769180225229,7.1586,125.88,125.81,15.72265309]
[1769180225428,13.52180104,125.92,125.83,2.1577341]
[1769180225732,13.52180104,125.92,125.85,15.72265309]
[1769180226132,13.52180104,125.92,125.86,7.1596]
[1769180226333,9.3135341,125.93,125.86,20.58987045]
[1769180226728,22.93037266,125.91,125.84,20.59097045]
[1769180226928,20.77263856,125.91,125.84,13.43027045]
[1769180227335,20.77313856,125.9,125.79,13.43027045]
[1769180228935,20.77313856,125.9,125.81,13.43027045]
[1769180229334,7.1581,125.89,125.81,13.43027045]
[1769180229537,13.61563856,125.89,125.81,13.43027045]
[1769180229734,13.61563856,125.88,125.78,13.43027045]
[1769180229939,7.1598,125.86,125.78,13.43027045]
[1769180230138,13.61563856,125.86,125.78,13.43027045]
[1769180230339,7.1603,125.85,125.78,13.43027045]
[1769180233246,13.61563856,125.86,125.78,13.43027045]
[1769180234147,13.61563856,125.88,125.78,13.43027045]
[1769180237045,20.77483856,125.87,125.78,13.43027045]
[1769180237447,13.61563856,125.86,125.78,13.43027045]
[1769180237844,13.61563856,125.86,125.79,7.1637]
[1769180238048,13.61563856,125.86,125.8,13.43027045]
[1769180238449,13.61563856,125.86,125.8,20.59327045]
[1769180239256,13.61563856,125.86,125.8,13.43027045]
[1769180240245,13.61563856,125.85,125.78,13.43027045]
[1769180240450,13.61563856,125.85,125.77,9.6921063]
[1769180240956,13.61563856,125.85,125.77,23.12237675]
[1769180241149,7.1609,125.84,125.77,23.12237675]
[1769180241457,13.61563856,125.85,125.77,23.12237675]
[1769180241650,20.77593856,125.85,125.77,23.12237675]
[1769180241846,13.61563856,125.85,125.77,23.12237675]
[1769180242256,7.1608,125.84,125.77,23.12237675]
[1769180242758,20.77643856,125.84,125.77,23.12237675]
[1769180243851,13.61563856,125.83,125.77,23.12237675]
[1769180245158,7.1608,125.84,125.78,13.43027045]
[1769180245362,18.91241642,125.85,125.78,13.43027045]
[1769180246057,13.61563856,125.85,125.78,13.43027045]
[1769180246258,20.77463856,125.88,125.78,13.43027045]
[1769180246959,2.15845809,125.86,125.78,15.58872854]
[1769180247563,2.15845809,125.86,125.78,22.75292854]
[1769180247759,2.15845809,125.86,125.79,13.43027045]
[1769180248749,2.15845809,125.86,125.81,13.43027045]
[1769180248960,15.77409665,125.88,125.81,13.43027045]
[1769180249651,13.61563856,125.93,125.82,15.58872854]
[1769180249848,13.61563856,125.93,125.85,13.43027045]
[1769180249849,2.15845809,125.92,125.85,13.43027045]
[1769180250963,13.61563856,125.93,125.85,13.43027045]
[1769180251954,13.61563856,125.93,125.86,14.36229098]
[1769180252965,14.5799427,125.92,125.86,14.36229098]
[1769180253155,14.5799427,125.92,125.84,14.36229098]
[1769180254058,14.5799427,125.92,125.85,14.36229098]
[1769180256372,14.5799427,125.93,125.85,14.36229098]
[1769180256960,14.5799427,125.93,125.86,7.1596]
[1769180257362,14.5799427,125.93,125.86,21.52189098]
[1769180257568,14.5799427,125.96,125.87,14.36229098]
[1769180257865,14.5799427,125.96,125.88,14.36229098]
[1769180258666,14.5799427,125.96,125.89,125.70779098]
[1769180258874,322.42153616,125.99,125.91,14.36229098]
[1769180259468,322.42153616,125.99,125.93,7.1556]
[1769180259669,14.5799427,126.03,125.93,14.36229098]
[1769180260773,116.51760677,126.04,125.93,21.51749098]
[1769180260774,14.5799427,126.01,125.93,21.51749098]
[1769180260968,14.5799427,126.01,125.93,7.1552]
[1769180261473,14.5799427,125.99,125.91,7.1563]
[1769180262767,21.7324427,125.99,125.92,7.1562]
[1769180262967,14.5799427,125.98,125.92,7.1562]
[1769180264073,14.5799427,126.01,125.92,14.36229098]
[1769180264267,14.5799427,126.01,125.93,14.36229098]
[1769180264671,21.7297427,126.04,125.95,14.36229098]
[1769180265163,14.5799427,126.03,125.95,14.36229098]
[1769180265868,14.5799427,126.03,125.97,7.1532]
[1769180266575,14.5799427,126.03,125.98,7.1528]
[1769180267170,5.29480677,126.07,125.99,7.1522]
[1769180267171,14.5799427,126.06,125.99,7.1522]
[1769180267876,14.5799427,126.05,125.97,21.51529098]
[1769180268281,14.5799427,126.05,125.95,14.36229098]
[1769180268667,7.1504,126.03,125.96,7.1539]
[1769180268872,14.5799427,126.05,125.95,14.36229098]
[1769180269876,14.5799427,126.04,125.96,14.36229098]
[1769180270279,14.5799427,126.04,125.97,14.36229098]
[1769180271075,14.5799427,126.07,125.98,14.36229098]
[1769180271280,14.5799427,126.07,126.0,14.36229098]
[1769180271580,14.5799427,126.09,126.01,14.36229098]
[1769180272077,14.5799427,126.09,126.03,7.1499]
[1769180272471,116.43550677,126.13,126.01,14.36229098]
[1769180272472,21.7253427,126.12,126.04,7.1493]
[1769180272673,14.5799427,126.12,126.04,14.36229098]
[1769180273889,21.7234427,126.15,126.06,14.36229098]
[1769180274187,14.5799427,126.15,126.07,111.1882]
[1769180274481,14.5799427,126.18,126.1,7.1459]
[1769180274674,14.5799427,126.18,126.09,125.53179098]
[1769180275279,14.5799427,126.17,126.09,7.1464]
[1769180275771,14.5799427,126.16,126.07,7.1474]
[1769180276378,14.5799427,126.14,126.07,7.1474]
[1769180276772,14.5799427,126.13,126.05,14.36229098]
[1769180277377,14.5799427,126.13,126.06,7.1482]
[1769180277574,14.5799427,126.13,126.05,14.36229098]
[1769180278887,14.5799427,126.13,126.02,116.51960677]
[1769180278888,14.5799427,126.13,126.03,125.57759098]
[1769180279083,14.5799427,126.13,126.05,125.56349098]
[1769180279291,14.5799427,126.13,126.06,14.36229098]
[1769180279477,14.5799427,126.13,126.07,7.1476]
[1769180280078,14.5799427,126.12,126.05,7.1486]
[1769180281193,14.5799427,126.14,126.06,21.51049098]
[1769180282983,14.77275037,126.13,126.06,21.51049098]
[1769180283183,14.77275037,126.13,126.03,126.02856801]
[1769180283483,14.77275037,126.13,126.04,14.81326801]
[1769180283890,21.91775037,126.12,126.05,7.1488]
[1769180285290,27.21175714,126.14,126.06,14.81326801]
[1769180285594,14.77275037,126.14,126.06,14.81326801]
[1769180285983,5.29480677,126.17,126.07,14.91040372]
[1769180286183,15.02691764,126.16,126.07,14.91040372]
[1769180287890,15.02691764,126.15,126.07,7.1473]
[1769180288091,15.02691764,126.15,126.07,14.91040372]
[1769180288893,22.16891764,126.18,126.1,7.1459]
[1769180289099,15.02691764,126.18,126.09,14.91040372]
[1769180289487,15.02691764,126.18,126.1,7.146]
[1769180289994,15.02691764,126.18,126.09,14.91040372]
[1769180290198,7.1427,126.16,126.09,22.05650372]
[1769180290399,15.02691764,126.18,126.09,14.91040372]
[1769180291189,22.16881764,126.18,126.12,7.1448]
[1769180291593,15.02691764,126.18,126.12,7.1448]
[1769180292187,15.02691764,126.18,126.13,7.1443]
[1769180292596,15.02691764,126.18,126.11,14.91040372]
[1769180292999,7.1422,126.17,126.08,126.08720372]
[1769180293197,22.16911764,126.17,126.08,14.91040372]
[1769180293596,22.16911764,126.17,126.11,7.1455]
[1769180294298,22.16961764,126.16,126.1,7.146]
[1769180294604,15.02691764,126.15,126.08,14.91040372]
[1769180295694,15.02691764,126.15,126.09,7.1466]
[1769180295890,15.02691764,126.14,126.05,14.91040372]
[1769180296894,15.02691764,126.14,126.08,7.1471]
[1769180297304,15.02691764,126.14,126.06,7.1478]
[1769180297603,15.02691764,126.14,126.06,14.91040372]
[1769180298002,15.02691764,126.14,126.08,7.1472]
[1769180300407,15.02691764,126.14,126.09,7.1466]
[1769180301111,15.02691764,126.17,126.1,7.146]
[1769180301505,15.02691764,126.17,126.07,126.09780372]
[1769180301506,15.02691764,126.17,126.09,14.91040372]
[1769180302007,15.02691764,126.17,126.08,14.91040372]
[1769180302902,116.37140677,126.2,126.08,14.91040372]
[1769180302903,22.16961764,126.16,126.1,7.146]
[1769180303905,15.02691764,126.15,126.1,7.146]
[1769180304710,15.02691764,126.14,126.05,126.11290372]
[1769180305008,15.02691764,126.14,126.05,14.91040372]
[1769180305306,15.02691764,126.12,126.05,14.91040372]
[1769180307006,15.02691764,126.12,126.06,7.1483]
[1769180307608,7.1444,126.13,126.07,7.1478]
[1769180307807,15.02691764,126.14,126.07,7.1478]
[1769180308313,15.02691764,126.14,126.03,126.12930372]
[1769180308715,15.02691764,126.13,126.03,126.12930372]
[1769180309102,15.02691764,126.13,126.04,14.91040372]
[1769180309311,15.02691764,126.13,126.05,14.91040372]
[1769180309709,15.02691764,126.13,126.06,14.91040372]
[1769180309902,27.44831135,126.16,126.06,126.10460372]
[1769180310104,22.17001764,126.16,126.07,14.91040372]
[1769180311318,15.02691764,126.16,126.1,7.146]
[1769180312311,22.16961764,126.16,126.1,7.146]
[1769180312506,14.79509769,126.15,126.06,14.0928005]
[1769180312712,14.79509769,126.15,126.03,125.3117005]
[1769180313016,16.94497553,126.11,126.05,7.1486]
[1769180313808,24.09047553,126.11,126.05,7.1486]
[1769180314006,16.94497553,126.11,126.05,7.1486]
[1769180314409,7.1444,126.13,126.06,7.1482]
[1769180314614,24.08937553,126.13,126.06,7.1482]
[1769180314814,16.94497553,126.13,126.05,16.24267834]
[1769180315015,14.79509769,126.13,126.05,14.0928005]
[1769180316013,14.79509769,126.13,126.07,7.1477]
[1769180316518,21.93949769,126.13,126.07,7.1477]
[1769180317115,14.79509769,126.12,126.07,7.1477]
[1769180317423,14.79509769,126.12,126.05,14.0928005]
[1769180317722,14.79509769,126.12,126.05,7.1489]
[1769180318919,7.1457,126.11,126.05,7.1489]
[1769180319117,21.94079769,126.11,126.05,7.1489]
[1769180319320,14.79509769,126.1,126.03,21.2423005]
[1769180319517,21.94129769,126.1,126.03,14.0928005]
[1769180320422,7.1466,126.09,126.03,14.0928005]
[1769180320630,14.79509769,126.08,126.0,14.0928005]
[1769180321325,14.79509769,126.07,126.0,14.0928005]
[1769180321933,14.79509769,126.07,126.02,7.1506]
[1769180323329,21.94169769,126.09,126.03,7.15]
[1769180323926,21.94169769,126.09,126.0,14.0928005]
[1769180324225,14.79509769,126.08,126.0,14.0928005]
[1769180324938,7.1466,126.09,126.02,14.0928005]
[1769180325138,21.94169769,126.09,126.02,14.0928005]
[1769180326037,21.94169769,126.09,126.03,7.15]
[1769180326239,14.79509769,126.12,126.03,14.0928005]
[1769180326739,14.79509769,126.15,126.05,14.0928005]
[1769180327232,14.79509769,126.18,126.08,14.0928005]
[1769180327740,21.93829769,126.16,126.08,21.2395005]
[1769180328635,21.93829769,126.16,126.09,7.1466]
[1769180330033,14.79509769,126.14,126.07,7.1475]
[1769180330430,14.79509769,126.14,126.07,14.0928005]
[1769180330643,21.93829769,126.16,126.08,14.0928005]
[1769180330834,14.79509769,126.15,126.08,14.0928005]
[1769180331535,21.93839769,126.15,126.08,14.0928005]
[1769180332945,21.93839769,126.15,126.08,21.2400005]
[1769180334137,21.93739769,126.17,126.1,7.1457]
[1769180334543,14.79509769,126.16,126.09,14.0928005]
[1769180334742,21.93839769,126.15,126.09,7.1466]
[1769180335847,21.93899769,126.14,126.07,7.1473]
[1769180336240,14.79509769,126.14,126.06,14.0928005]
[1769180336442,14.79509769,126.16,126.09,14.0928005]
[1769180336746,14.79509769,126.19,126.09,14.0928005]
[1769180338046,21.93669769,126.18,126.12,7.1448]
[1769180339844,14.79509769,126.18,126.11,14.0928005]
[1769180340648,14.79509769,126.17,126.08,125.2661005]
[1769180340851,14.79509769,126.17,126.09,14.0928005]
[1769180341650,14.79509769,126.16,126.07,14.0928005]
[1769180342942,14.79509769,126.16,126.08,7.1468]
[1769180343849,22.18606839,126.14,126.07,21.2406005]
[1769180344351,15.04226839,126.13,126.07,21.2406005]
[1769180344846,15.04226839,126.13,126.07,7.1478]
[1769180345248,15.04226839,126.12,126.05,7.1485]
[1769180345647,15.04226839,126.12,126.04,14.87813021]
[1769180345844,15.04226839,126.12,126.05,14.87813021]
[1769180346542,12.42099806,126.15,126.07,7.1477]
[1769180346853,14.87135408,126.14,126.05,14.87813021]
[1769180347354,14.87135408,126.13,126.06,7.1478]
[1769180347949,22.01585408,126.13,126.06,7.1478]
[1769180348847,22.01625408,126.12,126.06,7.1478]
[1769180349547,22.01625408,126.12,126.05,14.87813021]
[1769180350249,14.87135408,126.11,126.05,7.1488]
[1769180352166,22.01685408,126.11,126.05,7.1488]
[1769180354073,22.01745408,126.1,126.03,22.6388688]
[1769180354262,14.87135408,126.09,126.03,7.1495]
[1769180355665,14.87135408,126.09,126.02,15.4893688]
[1769180355666,22.01805408,126.09,126.02,15.4893688]
[1769180355867,14.87135408,126.11,126.03,15.4893688]
[1769180356058,22.01615408,126.13,126.06,7.1482]
[1769180356958,22.01635408,126.12,126.06,7.1482]
[1769180357759,7.1455,126.11,126.05,15.4893688]
[1769180357963,14.87135408,126.15,126.05,15.4893688]
[1769180358468,22.01585408,126.13,126.06,7.1478]
[1769180358672,14.87135408,126.15,126.06,15.4893688]
[1769180358960,14.87135408,126.15,126.08,15.4893688]
[1769180359159,14.87135408,126.18,126.08,15.4893688]
[1769180359962,22.01345408,126.17,126.1,7.1455]
[1769180360669,7.1428,126.16,126.1,7.1455]
[1769180360870,14.87135408,126.15,126.08,22.6359688]
[1769180361275,14.87135408,126.15,126.08,15.4893688]
[1769180361466,14.87135408,126.15,126.09,7.1466]
[1769180361467,22.01465408,126.15,126.09,7.1466]
[1769180362380,22.01515408,126.14,126.07,7.1474]
[1769180362577,14.87135408,126.13,126.07,7.1474]
[1769180369085,22.01585408,126.13,126.06,22.6376688]
[1769180369281,14.87135408,126.12,126.06,22.6376688]
[1769180369881,22.01645408,126.12,126.04,15.4893688]
[1769180370086,14.87135408,126.12,126.04,15.4893688]
[1769180370478,22.01755408,126.1,126.01,15.4893688]
[1769180370985,24.16809246,126.1,126.02,17.63990718]
[1769180371284,24.16809246,126.1,126.04,7.1493]
[1769180372884,22.01755408,126.1,126.04,22.07861317]
[1769180373984,22.01755408,126.1,126.03,7.15]
[1769180374378,14.98590091,126.09,126.02,14.92931317]
[1769180374583,14.98590091,126.09,126.02,22.07991317]
[1769180375080,7.1474,126.08,126.02,22.07991317]
[1769180376193,14.98590091,126.09,126.02,22.07991317]
[1769180376586,14.98590091,126.09,126.03,7.15]
[1769180379395,14.98590091,126.11,126.04,22.07851317]
[1769180379584,14.98590091,126.11,126.04,14.92931317]
[1769180379787,22.13250091,126.09,126.03,7.1499]
[1769180380390,22.13250091,126.09,126.03,22.07921317]
[1769180380799,14.98590091,126.09,126.04,7.1495]
[1769180381096,22.13200091,126.1,126.04,7.1495]
[1769180381393,22.13200091,126.1,126.04,22.07881317]
[1769180382692,22.13200091,126.1,126.03,7.15]
[1769180382896,7.1469,126.09,126.03,7.15]
[1769180383098,22.13280091,126.09,126.03,7.15]
[1769180384194,7.1474,126.08,126.02,14.92931317]
[1769180385192,14.98590091,126.09,126.02,22.07971317]
[1769180385397,14.98590091,126.09,126.03,14.92931317]
[1769180386196,14.98590091,126.09,126.04,7.1494]
[1769180387002,14.98590091,126.09,126.03,14.92931317]
[1769180388096,14.98590091,126.08,126.02,7.1506]
[1769180388403,14.98590091,126.08,126.02,14.92931317]
[1769180388801,7.1463,126.1,126.04,7.1494]
[1769180389003,14.98590091,126.11,126.04,7.1494]
[1769180390102,14.98590091,126.1,126.04,7.1494]
[1769180393010,7.1455,126.11,126.05,22.07821317]
[1769180393398,22.13140091,126.11,126.05,22.07821317]
[1769180393713,14.98590091,126.11,126.05,22.07821317]
[1769180394913,17.1359701,126.11,126.05,22.07821317]
[1769180395113,17.1359701,126.11,126.06,7.1481]
[1769180395505,2.15006919,126.09,126.06,7.1481]
[1769180396412,17.1359701,126.11,126.06,7.1481]
[1769180398414,17.1359701,126.13,126.05,17.07938236]
[1769180398606,17.1359701,126.15,126.07,17.07938236]
[1769180399319,2.15006919,126.13,126.07,22.07651317]
[1769180400219,17.1359701,126.16,126.09,14.92931317]
[1769180400425,17.1359701,126.16,126.09,17.07938236]
[1769180400426,14.98590091,126.16,126.09,17.07938236]
[1769180400616,14.98590091,126.22,126.13,14.92931317]
[1769180400925,17.1359701,126.2,126.14,7.1436]
[1769180401522,17.1359701,126.2,126.13,14.92931317]
[1769180402027,17.1359701,126.2,126.14,7.1435]
[1769180402228,17.1359701,126.2,126.13,14.92931317]
[1769180402520,17.1359701,126.2,126.12,16.47830157]
[1769180402720,17.1359701,126.2,126.13,21.47243238]
[1769180402926,17.1359701,126.2,126.13,14.32823238]
[1769180403322,2.15006919,126.16,126.09,16.47830157]
[1769180403627,17.58111912,126.16,126.09,16.47830157]
[1769180403824,17.58111912,126.16,126.1,7.1459]
[1769180405123,17.58111912,126.18,126.11,14.32823238]
[1769180405528,17.58111912,126.16,126.1,7.1456]
[1769180405721,17.58111912,126.16,126.09,14.32823238]
[1769180406022,17.58111912,126.16,126.09,21.47443238]
[1769180406216,17.58111912,126.14,126.06,16.47830157]
[1769180406822,16.46826842,126.16,126.08,17.77724675]
[1769180407229,16.46826842,126.16,126.09,7.1465]
[1769180407722,16.46826842,126.14,126.07,2.15006919]
[1769180407924,16.46826842,126.14,126.08,7.1469]
[1769180408126,16.46826842,126.14,126.08,22.77407756]
[1769180408424,14.31819923,126.11,126.05,15.62717756]
[1769180408624,16.46826842,126.14,126.07,22.77487756]
[1769180409536,14.31819923,126.13,126.07,22.77487756]
[1769180410028,16.46826842,126.12,126.05,9.29866919]
[1769180410218,16.46826842,126.12,126.05,7.1486]
[1769180410421,16.46826842,126.1,126.05,7.1486]
[1769180411018,14.31819923,126.1,126.05,7.1486]
[1769180411226,16.46826842,126.12,126.05,7.1486]
[1769180412724,14.31819923,126.15,126.07,15.62717756]
[1769180412925,16.46826842,126.15,126.07,17.77724675]
[1769180413630,16.46826842,126.13,126.05,2.15006919]
[1769180413930,111.1113,126.16,126.05,15.62717756]
[1769180413931,16.46826842,126.11,126.05,15.62717756]